bitfinex/quotes_ETHUSD_20220112
["timestamp","ask_amount","ask_price","bid_price","bid_amount"]
[1641995566123,0.00795793,3365.2,3364.6,0.05467034]
[1641995566323,0.0073895,3365.1,3364.4,1.48582]
[1641995566723,0.00682108,3365.0,3364.4,1.48582]
[1641995567024,0.00625266,3364.9,3364.4,1.48582]
[1641995567226,0.00625266,3364.9,3364.8,0.74293]
[1641995567423,3.0902,3365.8,3364.8,0.74293]
[1641995567826,0.0096632,3365.5,3364.8,0.74293]
[1641995568024,0.0096632,3365.5,3364.9,0.02546599]
[1641995568224,0.0096632,3365.5,3364.8,1.04293]
[1641995568225,0.00909477,3365.4,3365.3,7.55]
[1641995568646,0.00909477,3365.4,3365.3,7.85]
[1641995569046,0.00909477,3365.4,3365.3,8.85]
[1641995569845,0.00909477,3365.4,3365.3,7.85]
[1641995570048,0.00909477,3365.4,3365.3,1.3]
[1641995570245,0.00909477,3365.4,3365.3,4.9]
[1641995570449,0.00909477,3365.4,3365.3,3.9]
[1641995570646,0.00909477,3365.4,3365.3,1.0]
[1641995571149,0.00909477,3365.4,3365.2,1.74278]
[1641995571349,0.00909477,3365.4,3365.2,0.74278]
[1641995571555,0.00852635,3365.3,3365.2,0.74278]
[1641995571752,0.00852635,3365.3,3365.1,1.48556]
[1641995571951,0.90087607,3365.3,3365.1,1.48556]
[1641995572213,0.89234972,3365.3,3365.1,2.2282516]
[1641995572906,5.4263,3366.5,3365.7,0.74257]
[1641995573306,0.00682108,3366.4,3366.0,0.7426]
[1641995573508,0.00682108,3366.4,3366.1,0.01881181]
[1641995573705,0.00682108,3366.4,3366.0,0.7426]
[1641995573706,0.00625265,3366.3,3366.0,0.7426]
[1641995573906,0.0152533,3366.2,3366.0,0.7426]
[1641995574105,0.00568423,3366.2,3366.0,0.7426]
[1641995574306,0.00511581,3366.1,3366.0,0.7426]
[1641995574505,0.00511581,3366.1,3365.9,1.4852]
[1641995574907,0.00454738,3366.0,3365.9,1.4852]
[1641995575108,0.00454738,3366.0,3364.9,1.48541]
[1641995575408,0.00454738,3366.0,3364.0,0.1112]
[1641995575409,0.00397896,3365.9,3365.1,0.74287]
[1641995575610,0.03587094,3365.9,3365.0,0.00113685]
[1641995575808,1.90957774,3366.2,3364.0,7.6164]
[1641995575809,0.00341054,3365.8,3364.1,0.00625266]
[1641995576051,0.00341054,3365.8,3364.5,0.74288]
[1641995576252,4.55,3365.6,3364.6,1.48582]
[1641995576450,0.00284211,3365.7,3364.6,1.48923054]
[1641995576653,0.4188,3366.1,3365.1,0.74288]
[1641995576654,0.00170527,3365.5,3365.1,0.74288]
[1641995576853,0.74288,3366.0,3364.7,0.00284212]
[1641995576854,0.00227369,3365.6,3364.7,0.00284212]
[1641995577051,2.17210188,3366.0,3364.7,0.00284212]
[1641995577052,0.00113684,3365.4,3364.7,0.00284212]
[1641995577257,0.03708447,3365.5,3364.1,0.00625266]
[1641995577455,0.0353792,3365.5,3364.1,0.00625266]
[1641995577655,0.00778116,3365.3,3364.1,1.49227266]
[1641995577858,1.48615,3365.1,3364.1,1.49227266]
[1641995578054,0.1188,3365.3,3364.2,0.00568424]
[1641995578055,5.3061,3365.0,3364.2,0.00568424]
[1641995578658,5.3061,3365.0,3364.2,0.7429654]
[1641995578856,5.3061,3365.0,3364.5,0.05467034]
[1641995579058,5.3061,3365.0,3364.4,1.48595]
[1641995579059,5.3061,3365.0,3364.4,1.78595]
[1641995579257,5.3061,3365.0,3364.7,0.74287]
[1641995579458,5.3061,3365.0,3364.7,1.04287]
[1641995579693,5.3061,3365.0,3364.8,0.0022737]
[1641995580100,7.55,3364.9,3363.4,3.7497]
[1641995580301,7.59328757,3364.9,3363.0,0.27639994]
[1641995580503,4.0372,3364.8,3363.6,0.00682108]
[1641995580903,2.17776533,3364.7,3364.0,1.48612]
[1641995581099,2.17776533,3364.7,3364.0,0.59344883]
[1641995581301,2.17776533,3364.7,3364.2,0.02316857]
[1641995581501,1.3268,3364.9,3364.2,0.02316857]
[1641995581801,1.3268,3364.9,3364.3,0.00284211]
[1641995582001,0.1188,3364.9,3364.3,0.00284211]
[1641995582301,0.1188,3364.9,3364.2,1.48599]
[1641995582302,0.89254871,3364.6,3364.2,1.48599]
[1641995582501,0.89254871,3364.6,3364.4,0.74303]
[1641995582701,0.89254871,3364.6,3364.3,0.00284211]
[1641995582903,0.89254871,3364.6,3364.5,0.00170527]
[1641995583203,0.0972286,3364.6,3364.3,0.00284211]
[1641995583467,0.0972286,3364.6,3364.4,0.00789346]
[1641995583661,0.0972286,3364.6,3364.5,0.74293]
[1641995583859,0.0972286,3364.6,3364.5,0.74463527]
[1641995584061,0.0972286,3364.6,3364.5,1.04463527]
[1641995584460,0.01820439,3364.9,3364.5,0.30170527]
[1641995584663,5.3061,3365.0,3364.5,1.78766337]
[1641995584863,5.3061,3365.0,3364.6,0.00113684]
[1641995584864,0.01237761,3364.9,3364.6,0.00113684]
[1641995585460,5.3061,3365.0,3364.6,0.00113684]
[1641995585663,5.3061,3365.0,3364.6,1.48705354]
[1641995585861,5.3061,3365.0,3364.6,0.74411684]
[1641995586261,0.00508124,3364.9,3364.6,0.74411684]
[1641995586560,5.3061,3365.0,3364.7,0.01005127]
[1641995586767,3.0042,3365.7,3364.7,3.98656746]
[1641995586768,0.1188,3365.7,3364.7,3.98656746]
[1641995586968,0.1188,3365.7,3364.9,0.05467034]
[1641995586969,5.6731,3365.6,3364.9,0.05467034]
[1641995587184,0.1188,3365.7,3364.9,2.48518]
[1641995587185,0.00284212,3365.3,3364.9,2.48518]
[1641995587392,0.00284212,3365.3,3365.1,2.22788]
[1641995587590,0.1188,3365.7,3365.1,1.33518227]
[1641995587591,0.0022737,3365.2,3365.1,1.33518227]
[1641995587792,0.0022737,3365.2,3365.1,1.63518227]
[1641995587992,0.0022737,3365.2,3365.1,3.12036247]
[1641995588192,0.00227329,3365.2,3365.1,9.47036247]
[1641995588790,0.00227329,3365.2,3365.1,8.93972199]
[1641995589197,0.1188,3366.6,3365.2,7.55]
[1641995589398,6.6517,3366.7,3365.9,0.05467034]
[1641995589595,6.6517,3366.7,3366.2,0.74248]
[1641995589793,6.6517,3366.7,3366.4,0.74246]
[1641995589794,5.4708,3366.7,3366.4,0.74246]
[1641995589994,5.4708,3366.7,3366.5,2.55060574]
[1641995590199,5.4708,3366.7,3366.6,8.60930246]
[1641995590396,5.4708,3366.7,3366.6,9.27130246]
[1641995590595,0.1188,3368.0,3366.6,9.27130246]
[1641995590596,0.1188,3368.0,3366.7,2.24365267]
[1641995590798,1.2481,3368.5,3367.2,0.74222]
[1641995591046,0.00568423,3367.7,3367.2,1.73302]
[1641995591247,0.00568423,3367.7,3367.2,1.2908]
[1641995591446,0.00511581,3367.6,3367.2,1.2908]
[1641995591644,0.00511581,3367.6,3367.4,0.74223]
[1641995591845,0.00454739,3367.5,3367.4,0.74223]
[1641995592044,0.00454739,3367.5,3367.4,9.69646]
[1641995592446,0.00454739,3367.5,3367.4,0.362]
[1641995593044,0.00454739,3367.5,3367.4,4.862]
[1641995593448,0.00454739,3367.5,3367.4,8.17206228]
[1641995593645,0.00454739,3367.5,3367.4,4.97004013]
[1641995594048,0.00454739,3367.5,3367.4,8.52004013]
[1641995594248,0.00454739,3367.5,3367.4,4.97004013]
[1641995594448,0.00454739,3367.5,3367.4,4.07808026]
[1641995594716,2.02455341,3369.0,3367.6,0.50435569]
[1641995594717,0.1187,3369.0,3367.6,0.50435569]
[1641995595017,6.11265057,3369.6,3369.0,0.50435569]
[1641995595018,0.12135057,3369.6,3369.0,0.50435569]
[1641995595216,0.00265057,3369.6,3369.0,0.50435569]
[1641995595415,0.1187,3369.8,3369.0,0.50435569]
[1641995595619,0.1187,3369.8,3369.7,0.0125965]
[1641995595816,2.227687,3369.9,3369.3,0.02000651]
[1641995596020,0.1187,3369.8,3369.2,0.50435569]
[1641995596220,0.00113684,3369.7,3369.2,0.50435569]
[1641995596523,0.0409115,3369.6,3369.3,0.00113685]
[1641995596720,2.19975832,3369.5,3369.3,0.50549254]
[1641995597720,3.28889844,3369.4,3369.3,0.50549254]
[1641995598121,0.38889844,3369.4,3369.3,0.50549254]
[1641995600545,0.38889844,3369.4,3369.0,14.6159952]
[1641995600941,0.38889844,3369.4,3369.1,0.00113685]
[1641995601143,0.38889844,3369.4,3369.2,0.02060267]
[1641995601342,0.38889844,3369.4,3369.1,0.00113685]
[1641995601941,2.220687,3369.5,3369.2,0.03274942]
[1641995602186,2.220687,3369.5,3369.1,0.00113685]
[1641995602391,2.220687,3369.5,3369.0,14.46755393]
[1641995602592,0.01245814,3369.4,3369.0,14.46755393]
[1641995602792,0.00170527,3369.4,3369.0,14.46755393]
[1641995602991,0.00113685,3369.3,3369.0,14.46755393]
[1641995603393,0.00170527,3369.4,3369.0,14.46755393]
[1641995603593,0.00170527,3369.4,3369.1,2.88955326]
[1641995603792,2.220687,3369.5,3369.2,0.40750835]
[1641995603793,0.00113685,3369.3,3369.2,0.40750835]
[1641995603993,0.00113685,3369.3,3369.2,7.512]
[1641995604395,0.00113685,3369.3,3369.2,8.25377]
[1641995604592,0.00113685,3369.3,3369.2,10.35654879]
[1641995604993,2.227687,3369.9,3369.3,7.55]
[1641995605192,2.227687,3369.9,3369.5,1.48328]
[1641995605392,2.227687,3369.9,3369.6,0.362]
[1641995605393,0.00284212,3369.8,3369.6,0.362]
[1641995605593,0.00284212,3369.8,3369.7,6.262]
[1641995605796,2.177687,3369.9,3369.7,6.262]
[1641995606036,2.177687,3369.9,3369.7,0.362]
[1641995606335,1.258087,3369.9,3369.8,8.74359012]
[1641995606545,0.01496773,3370.3,3369.9,7.55]
[1641995606742,0.01496773,3370.3,3370.0,0.40912599]
[1641995606946,0.63318073,3370.8,3370.1,7.46238423]
[1641995607144,0.63318073,3370.8,3370.3,0.01211462]
[1641995607341,0.63318073,3370.8,3370.4,0.362]
[1641995607542,0.03390507,3370.7,3370.4,0.362]
[1641995607744,0.0045,3371.1,3370.6,5.36284993]
[1641995607943,0.0045,3371.1,3370.7,0.362]
[1641995608146,0.0045,3371.1,3370.5,0.362]
[1641995608344,0.43830879,3371.5,3370.5,0.362]
[1641995608644,0.43830879,3371.5,3370.6,0.05467034]
[1641995608645,0.0096632,3371.0,3370.6,0.05467034]
[1641995608844,0.0096632,3371.0,3370.5,0.37432072]
[1641995608845,0.01623905,3370.7,3370.5,0.3]
[1641995609046,0.01623905,3370.7,3370.6,5.762]
[1641995609247,0.01623905,3370.7,3370.6,0.362]
[1641995609449,3.98519767,3371.6,3370.6,0.362]
[1641995609686,3.98519767,3371.6,3370.6,0.80019997]
[1641995609991,0.00743689,3371.4,3370.6,0.13819997]
[1641995610187,0.00743689,3371.4,3370.6,0.362]
[1641995610385,0.00686847,3371.3,3370.6,0.362]
[1641995610584,0.1186,3371.2,3370.7,0.03254417]
[1641995610789,0.1186,3371.2,3370.3,0.13819997]
[1641995610790,0.00630004,3371.2,3370.3,0.13819997]
[1641995610995,0.1186,3371.5,3370.8,0.00761895]
[1641995610996,0.00573162,3371.1,3370.8,0.00761895]
[1641995611190,0.02073166,3371.0,3370.8,0.00761895]
[1641995611392,100.0051632,3371.0,3370.8,0.00761895]
[1641995611595,100.0,3370.9,3370.8,0.00761895]
[1641995611993,100.0,3370.9,3370.1,2.08498018]
[1641995612191,100.00743689,3371.4,3370.1,0.362]
[1641995612391,0.00402635,3370.8,3370.2,0.06672983]
[1641995612590,0.00686847,3371.3,3370.3,0.362]
[1641995612792,0.00345793,3370.7,3370.4,0.05605121]
[1641995612991,0.00630004,3371.2,3370.5,0.362]
[1641995613202,0.0028895,3370.6,3370.5,0.362]
[1641995613443,0.00978407,3371.1,3369.7,0.13819997]
[1641995613444,0.1186,3371.0,3369.7,0.13819997]
[1641995613639,0.0028895,3370.6,3369.7,0.13819997]
[1641995613839,0.00459477,3370.9,3369.9,0.1242]
[1641995614042,0.00232108,3370.5,3369.9,0.1242]
[1641995614244,0.00402635,3370.8,3369.9,0.1242]
[1641995614442,0.00175266,3370.4,3369.9,0.1242]
[1641995614646,0.00345793,3370.7,3369.9,0.1242]
[1641995614846,0.00118423,3370.3,3369.9,0.1242]
[1641995615043,0.0028895,3370.6,3370.0,0.02608999]
[1641995615243,0.0028895,3370.6,3369.9,0.1242]
[1641995615244,0.0028895,3370.6,3369.9,3.03412907]
[1641995615444,0.00232108,3370.5,3370.0,0.05018935]
[1641995615646,0.00232108,3370.5,3370.0,0.362]
[1641995615849,2.33834938,3371.3,3370.7,0.00525798]
[1641995616045,0.1186,3371.2,3370.4,0.362]
[1641995616443,0.1186,3371.4,3370.4,0.362]
[1641995616845,0.00511581,3371.3,3370.7,0.00696324]
[1641995617045,0.00511581,3371.3,3370.1,0.95588561]
[1641995617290,3.86659767,3371.6,3370.2,0.362]
[1641995617291,0.13819976,3371.2,3370.2,0.362]
[1641995617489,0.00454738,3371.2,3370.2,0.36313685]
[1641995617688,0.00397896,3371.1,3370.2,0.36313685]
[1641995617892,0.8909956,3370.4,3370.3,0.7416236]
[1641995618091,0.8909956,3370.4,3370.3,5.2036236]
[1641995618291,0.8909956,3370.4,3370.3,4.512]
[1641995618491,0.8909956,3370.4,3370.3,0.662]
[1641995618691,9.56e-05,3370.4,3370.3,8.22430641]
[1641995618892,9.56e-05,3370.4,3370.3,0.362]
[1641995619496,0.00341054,3371.0,3370.3,0.67471627]
[1641995619896,0.00284211,3370.9,3370.3,0.67471627]
[1641995620092,0.00284211,3370.9,3370.5,1.4830066]
[1641995620292,0.00227369,3370.8,3370.6,0.362]
[1641995620493,0.00227369,3370.8,3370.7,3.812]
[1641995620691,0.86017,3371.6,3370.7,3.812]
[1641995621146,0.00625266,3371.5,3371.1,0.7414564]
[1641995621349,0.00625266,3371.5,3371.2,0.39551869]
[1641995621544,100.00568423,3371.4,3371.2,0.362]
[1641995621744,100.12428423,3371.4,3371.2,0.362]
[1641995621945,100.00511581,3371.3,3371.2,0.362]
[1641995622445,100.00511581,3371.3,3370.5,0.95398173]
[1641995622446,100.00511581,3371.3,3370.6,1.10353]
[1641995622845,0.01286994,3371.2,3370.6,1.11561185]
[1641995623047,0.00454738,3371.2,3370.7,0.06672983]
[1641995623246,0.00397896,3371.1,3370.9,1.4828652]
[1641995623444,0.00397896,3371.1,3371.0,6.50343]
[1641995623645,0.4406357,3371.7,3371.0,0.312]
[1641995623848,100.0,3371.1,3370.2,0.00113685]
[1641995624048,0.03122808,3371.0,3370.2,0.00113685]
[1641995624251,0.3,3371.1,3370.2,0.0022737]
[1641995624447,0.00284211,3370.9,3370.3,0.03960452]
[1641995624692,0.00341054,3371.0,3370.3,0.03960452]
[1641995624891,0.00227369,3370.8,3370.2,0.0022737]
[1641995625093,0.00284211,3370.9,3370.2,0.0022737]
[1641995625290,0.89083524,3371.0,3370.2,0.0022737]
[1641995625291,0.00170527,3370.7,3370.2,0.0022737]
[1641995625492,0.00227369,3370.8,3370.2,0.0022737]
[1641995625696,0.00113684,3370.6,3370.4,0.04318894]
[1641995625894,0.00170527,3370.7,3370.3,2.2247079]
[1641995626094,0.00284211,3370.9,3370.3,2.2247079]
[1641995626294,0.00816575,3370.5,3370.3,2.2247079]
[1641995626495,0.00227369,3370.8,3370.3,2.2247079]
[1641995626697,0.89083524,3370.4,3370.3,1.4830979]
[1641995627001,0.89083524,3370.4,3370.2,0.0022737]
[1641995627002,0.3,3370.3,3370.2,0.0022737]
[1641995627397,0.3,3370.3,3369.9,0.1242]
[1641995627398,0.3,3370.3,3370.0,0.0022737]
[1641995627997,0.27209224,3370.3,3370.0,0.0022737]
[1641995628198,0.01470546,3370.2,3370.0,0.0022737]
[1641995628441,0.27209224,3370.3,3370.0,0.0022737]
[1641995629236,0.02391231,3370.2,3370.0,0.0022737]
[1641995629439,0.39069224,3370.3,3370.1,0.04104249]
[1641995629637,0.1186,3370.6,3370.1,0.04104249]
[1641995629845,7.55,3370.5,3370.2,0.00113685]
[1641995630063,0.1186,3370.4,3370.2,0.00113685]
[1641995630242,0.1186,3370.4,3370.0,0.0022737]
[1641995630743,0.1186,3370.4,3370.1,0.02568734]
[1641995630941,0.1186,3370.4,3370.0,0.0022737]
[1641995631146,0.1186,3370.4,3370.2,0.00113685]
[1641995631345,0.1186,3370.5,3370.0,0.0022737]
[1641995631546,0.1186,3370.5,3370.2,0.02568734]
[1641995631746,0.1186,3370.5,3370.0,0.00341054]
[1641995631944,3.7982,3370.8,3370.3,0.00170527]
[1641995632208,3.7982,3370.8,3370.1,0.0125634]
[1641995632410,3.7982,3370.8,3370.2,0.00227369]
[1641995633416,6.26771717,3370.3,3370.2,0.00227369]
[1641995633614,1.66771717,3370.3,3370.0,0.00341054]
[1641995633815,5.244,3370.7,3370.0,0.00341054]
[1641995634015,1.2623,3370.7,3370.0,0.00341054]
[1641995634615,1.2623,3370.7,3369.9,0.1242]
[1641995634616,0.02188154,3369.3,3369.1,0.74176]
[1641995634916,0.02188154,3369.3,3369.2,10.02984128]
[1641995635117,0.00341054,3370.6,3369.2,11.39184128]
[1641995635320,0.00341054,3370.6,3369.5,0.74166]
[1641995635520,3.7982,3370.8,3369.5,0.74166]
[1641995635521,0.00284212,3370.5,3369.6,0.362]
[1641995635817,0.0022737,3370.4,3369.8,1.48332]
[1641995636045,0.0022737,3370.4,3369.8,1.84532]
[1641995636247,0.00170527,3370.3,3369.8,2.58705]
[1641995636445,0.00170527,3370.3,3369.8,1.10373]
[1641995636644,0.00113685,3370.2,3369.8,1.10373]
[1641995636945,0.00397897,3370.7,3370.0,0.0046508]
[1641995637144,0.00397897,3370.7,3370.1,0.74169]
[1641995637549,0.00397897,3370.7,3370.0,1.48326]
[1641995638151,0.00397897,3370.7,3370.1,0.74168]
[1641995638350,3.05217897,3370.8,3370.2,4.0]
[1641995638549,3.05217897,3370.8,3370.2,4.00284212]
[1641995638750,0.07785904,3371.1,3370.3,0.0022737]
[1641995638953,0.07785904,3371.1,3370.3,0.00284212]
[1641995639252,101.48530527,3371.0,3370.1,0.00341054]
[1641995639451,0.4186,3370.9,3370.1,0.00341054]
[1641995639703,0.41973684,3370.9,3369.4,0.00738951]
[1641995639903,100.0,3370.8,3369.4,0.00738951]
[1641995640104,0.3,3370.8,3369.8,0.74178]
[1641995640315,0.4186,3370.8,3369.8,0.74178]
[1641995640507,0.4186,3370.8,3369.9,0.00454739]
[1641995640508,0.1186,3370.8,3369.9,0.00454739]
[1641995640705,0.1186,3370.8,3369.6,1.4835]
[1641995640706,0.89108097,3370.1,3369.6,1.33870442]
[1641995640907,0.89108097,3370.1,3369.8,0.74172]
[1641995641107,0.89108097,3370.1,3369.8,0.74178]
[1641995641307,0.89108097,3370.1,3369.8,1.4834907]
[1641995641508,0.89108097,3370.1,3369.9,1.48337]
[1641995642507,0.89108097,3370.1,3369.9,5.81927931]
[1641995642705,0.89108097,3370.1,3369.9,3.7082494]
[1641995643308,0.89108097,3370.1,3370.0,4.9]
[1641995643749,0.89221782,3370.1,3370.0,5.64168]
[1641995643951,0.00113685,3370.1,3370.0,5.64168]
[1641995644151,0.00113685,3370.1,3369.7,0.00113685]
[1641995644451,0.00113685,3370.1,3369.6,0.00170527]
[1641995644851,0.00113685,3370.1,3369.7,0.7417]
[1641995645249,0.04770841,3370.0,3369.5,1.33584116]
[1641995645451,0.0499821,3370.0,3369.5,1.33584116]
[1641995645654,0.00170527,3369.9,3369.6,2.05722829]
[1641995645852,0.00170527,3369.9,3369.8,6.09186817]
[1641995646053,0.7417,3370.9,3369.8,6.09186817]
[1641995646252,0.7417,3370.9,3370.0,0.74168]
[1641995646451,0.00682108,3370.8,3370.0,0.74168]
[1641995646858,0.07852323,3370.7,3370.4,0.74166]
[1641995647062,0.00625266,3370.7,3370.4,0.74166]
[1641995647298,0.00568423,3370.6,3370.4,0.59216236]
[1641995647697,0.00511581,3370.5,3370.4,0.59216236]
[1641995648500,0.00511581,3370.5,3370.4,3.59216236]
[1641995649804,0.00511581,3370.5,3370.4,0.59216236]
[1641995650005,0.00511581,3370.5,3370.1,1.4833]
[1641995650502,0.00454739,3370.4,3370.1,1.4833]
[1641995650959,0.00397896,3370.3,3370.1,1.4833]
[1641995651248,0.00341054,3370.2,3370.1,2.22498]
[1641995651453,0.00341054,3370.2,3370.1,9.72498]
[1641995651651,0.00341054,3370.2,3370.1,8.83398729]
[1641995651853,0.00341054,3370.2,3370.1,1.33398729]
[1641995652251,0.00341054,3370.2,3370.1,2.07566729]
[1641995652453,0.00341054,3370.2,3370.1,4.92566729]
[1641995654158,0.00341054,3370.2,3370.1,2.07566729]
[1641995655397,0.00341054,3370.2,3370.1,6.12566729]
[1641995655795,0.00341054,3370.2,3370.1,2.07566729]
[1641995655997,0.00341054,3370.2,3370.1,2.08128828]
[1641995656804,0.00341054,3370.2,3370.1,1.19033763]
[1641995658103,0.00341054,3370.2,3370.1,0.00562099]
[1641995659346,0.09701054,3371.1,3370.1,0.00562099]
[1641995659547,0.07785904,3370.8,3370.6,0.7416]
[1641995659745,0.00454739,3371.0,3370.6,0.7416]
[1641995660146,0.00397896,3370.9,3370.6,0.7416]
[1641995660547,0.00341054,3370.8,3370.3,1.4832]
[1641995660949,0.00284212,3370.7,3370.3,1.48881357]
[1641995661150,0.00284212,3370.7,3370.4,0.00939298]
[1641995661353,0.00284212,3370.7,3370.3,2.97195357]
[1641995661354,0.00227369,3370.6,3370.3,2.97195357]
[1641995661566,0.00227369,3370.6,3370.4,0.85059955]
[1641995661749,0.00227369,3370.6,3370.3,3.27195357]
[1641995661750,0.04040134,3370.4,3370.3,3.27195357]
[1641995661949,0.00170527,3370.5,3370.3,3.27195357]
[1641995662198,0.00113685,3370.4,3370.3,10.02195357]
[1641995662601,0.45398982,3371.6,3370.6,0.7414361]
[1641995662803,0.45398982,3371.6,3371.0,1.48288]
[1641995663103,100.00625266,3371.5,3371.0,1.48288]
[1641995663303,0.07227057,3371.4,3371.1,0.74144]
[1641995663603,0.00511581,3371.3,3371.1,0.74144]
[1641995663802,99.95511581,3371.4,3371.1,0.74144]
[1641995664009,99.95511581,3371.3,3370.7,2.96602]
[1641995664202,99.95511581,3371.3,3370.7,1.48304]
[1641995664404,0.45398982,3371.6,3370.7,1.48304]
[1641995664405,0.00113685,3371.5,3370.8,0.00284212]
[1641995664603,0.00113685,3371.5,3370.9,0.0203482]
[1641995664802,100.0,3371.4,3370.9,0.0203482]
[1641995665003,0.07227057,3371.3,3371.0,1.48458527]
[1641995665203,100.3,3371.4,3371.0,1.48458527]
[1641995665405,0.3,3371.4,3371.1,0.00113685]
[1641995665604,100.0,3371.3,3371.1,0.74260685]
[1641995666047,0.00113685,3371.5,3371.1,3.70796925]
[1641995666252,0.00113685,3371.5,3371.2,2.24450228]
[1641995666450,0.00113685,3371.5,3371.2,3.22419]
[1641995666451,100.0,3371.4,3371.2,3.22419]
[1641995666653,100.0,3371.4,3371.3,0.74142]
[1641995666850,100.0,3371.4,3371.2,2.99695643]
[1641995667253,100.0,3371.4,3371.2,3.73833053]
[1641995667454,0.00113685,3371.5,3371.2,3.73833053]
[1641995667654,0.00113685,3371.5,3371.2,2.61464334]
[1641995667857,0.00113685,3371.5,3370.8,1.48286]
[1641995667858,7.5,3371.4,3370.8,1.48286]
[1641995668054,7.5,3371.4,3369.9,4.347]
[1641995668055,7.58689573,3371.4,3369.9,4.347]
[1641995668257,0.00113685,3371.3,3370.9,0.00113685]
[1641995668655,0.00113685,3371.3,3370.3,0.00454739]
[1641995668860,2.08854418,3371.2,3370.2,1.48836581]
[1641995669055,2.08854418,3371.2,3370.3,0.00454739]
[1641995669259,0.00113685,3371.3,3370.3,0.00454739]
[1641995669455,0.00113685,3371.3,3370.7,0.74149]
[1641995669908,0.00113685,3371.3,3371.0,0.74147]
[1641995671413,0.06509371,3371.2,3370.8,1.48464527]
[1641995671814,0.00113685,3371.3,3370.8,1.48464527]
[1641995672609,0.00113685,3371.3,3370.8,2.96753977]
[1641995672811,0.00113685,3371.3,3371.0,0.74142]
[1641995673010,0.00113685,3371.3,3370.8,2.07676984]
[1641995673844,0.89190228,3371.3,3370.8,2.07676984]
[1641995674244,0.89190228,3371.3,3371.0,0.74142]
[1641995674448,0.89190228,3371.3,3371.2,1.4828]
[1641995675248,0.00113685,3371.3,3371.2,0.59203457]
[1641995676849,11.9495,3372.3,3371.2,0.59203457]
[1641995677301,0.00511581,3372.2,3371.2,0.59203457]
[1641995677704,0.00454739,3372.1,3371.2,0.59203457]
[1641995678100,0.00397896,3372.0,3371.2,0.59203457]
[1641995678403,0.09986092,3371.9,3371.2,0.59203457]
[1641995678603,0.84125092,3371.9,3371.2,0.59203457]
[1641995678804,0.14944543,3371.3,3371.2,1.59203457]
[1641995679003,0.00284212,3371.8,3371.3,7.5]
[1641995679202,0.11930565,3372.0,3371.5,0.74127]
[1641995679605,0.11930565,3372.0,3371.4,19.01417142]
[1641995679805,11.9495,3372.3,3371.6,0.74123]
[1641995680005,0.00170527,3371.9,3371.5,1.0]
[1641995680405,0.00113685,3371.8,3371.5,2.48243]
[1641995680704,0.00341054,3372.2,3371.5,2.48243]
[1641995681152,11.9495,3372.3,3371.5,2.48243]
[1641995681153,0.0854555,3372.0,3371.5,1.48243]
[1641995681354,0.00284212,3372.1,3371.8,0.74125]
[1641995681556,0.00341054,3372.2,3371.8,0.74125]
[1641995681754,11.9495,3372.3,3371.8,0.74125]
[1641995681755,0.00227369,3372.0,3371.8,0.74125]
[1641995681954,0.00284212,3372.1,3371.8,0.74125]
[1641995682160,0.00341054,3372.2,3371.8,0.74125]
[1641995682358,0.00227369,3372.0,3371.8,0.74125]
[1641995682558,0.00284212,3372.1,3371.8,0.74125]
[1641995682858,8.15,3372.3,3372.0,3.59117]
[1641995683058,8.15,3372.3,3372.0,0.74117]
[1641995683262,0.89054861,3372.1,3372.0,2.74420611]
[1641995683462,0.89054861,3372.1,3372.0,3.76296446]
[1641995683659,4.0,3372.7,3372.0,3.76296446]
[1641995683660,4.0,3372.7,3372.0,9.24117]
[1641995683863,4.0,3372.7,3372.0,9.60317]
[1641995684064,0.06324404,3372.5,3372.4,0.74108]
[1641995684262,0.00284211,3372.6,3372.4,0.74108]
[1641995684462,4.0,3372.7,3372.4,0.74108]
[1641995684463,0.00227369,3372.5,3372.4,0.74108]
[1641995684899,4.0,3372.7,3372.4,0.74108]
[1641995684900,3.90227369,3372.7,3372.4,0.74108]
[1641995685300,3.90227369,3372.7,3372.4,2.74108]
[1641995685301,0.05281892,3372.6,3372.4,2.74108]
[1641995685499,3.90227369,3372.7,3372.4,0.74108]
[1641995685901,3.90227369,3372.7,3372.5,0.362]
[1641995686902,0.05,3372.9,3372.6,7.5]
[1641995687103,0.05,3372.9,3372.8,0.01237852]
[1641995687104,0.0001,3372.9,3372.8,0.01237852]
[1641995687307,3.42013333,3374.9,3372.9,7.5]
[1641995687308,3.7737,3374.4,3372.9,7.5]
[1641995687506,3.7737,3374.4,3373.0,18.042]
[1641995687703,3.2871969,3373.4,3373.2,17.68]
[1641995687905,0.74081,3374.6,3373.2,17.68]
[1641995687906,0.74081,3374.6,3373.3,0.362]
[1641995688105,0.1184,3374.6,3373.6,0.74078]
[1641995688308,0.00341054,3373.9,3373.7,0.362]
[1641995688553,0.00533333,3374.9,3373.9,17.68]
[1641995688755,0.00533333,3374.9,3374.0,2.362]
[1641995688946,0.00533333,3374.9,3374.2,0.74066]
[1641995688947,0.00454739,3374.7,3374.2,0.74066]
[1641995689151,0.00454739,3374.7,3374.4,0.74056]
[1641995689350,0.00397896,3374.6,3374.5,0.362]
[1641995689567,0.1184,3375.5,3374.6,7.63819997]
[1641995689751,0.1184,3375.5,3374.8,17.68]
[1641995689960,0.1184,3375.5,3374.9,1.10246]
[1641995690151,0.1184,3375.5,3375.2,0.74039]
[1641995690352,0.1184,3375.5,3375.3,0.362]
[1641995690553,1.49245305,3375.7,3375.4,0.01216743]
[1641995690754,1.49245305,3375.7,3375.5,0.362]
[1641995690955,0.00568424,3375.6,3375.5,0.362]
[1641995691756,0.06213576,3375.5,3374.8,0.362]
[1641995691958,0.00568424,3375.6,3374.8,0.362]
[1641995692227,1.49245305,3375.7,3374.9,19.16107]
[1641995692228,0.00454739,3375.4,3374.9,19.16107]
[1641995692421,1.49245305,3375.7,3375.0,0.362]
[1641995692422,0.00511581,3375.5,3375.0,0.362]
[1641995692626,0.00397897,3375.3,3375.0,0.362]
[1641995692820,0.00454739,3375.4,3375.2,8.98097]
[1641995693020,2.714853,3375.8,3375.3,25.542]
[1641995693220,2.714853,3375.8,3375.3,10.34245]
[1641995693423,3.90639997,3376.9,3375.3,10.34245]
[1641995693424,0.00568424,3375.6,3375.4,7.5]
[1641995693624,0.00568424,3375.6,3375.5,9.60222]
[1641995693822,5.78799997,3376.9,3375.5,9.342552]
[1641995694022,5.78799997,3376.9,3375.5,26.282272]